Cogmind - Beta 12 @@@ ROGUE MODE // 2023.10.01 @ 08:37:15 Player: Pitt Result: Destroyed by G-34 Mercenary with Small Laser Performance ------------- Evolutions (1) 500 Regions Visited (3) 600 Robots Destroyed (26) 130 Value Destroyed (600) 600 Prototype IDs (2) 40 Alien Tech Used (0) 0 Bonus (0) 0 TOTAL SCORE: 1870 Bonus ------- None Cogmind --------- Core Integrity 0/400 Matter 117/300 Energy 100/100 System Corruption 2% Temperature Cool (6) Movement Core (100) Ox1 Location -9/Storage Parts ------- > --- POWER (1) -------- (None) > --- PROPULSION (4) --- (None) > --- UTILITY (2) ------ Small Storage Unit > --- WEAPON (2) ------- (None) > --- INVENTORY (8) ---- Flight Unit Hardlight Generator Hardlight Generator Tractor Beam Datajack Datajack Mining Laser Peak State ------------ > --- POWER ------------ Light Deuterium Engine > --- PROPULSION ------- Flight Unit Flight Unit Flight Unit Flight Unit > --- UTILITY ---------- Small Storage Unit Visual Processing Unit > --- WEAPON ----------- Assault Rifle Light Assault Rifle > --- INVENTORY -------- Flight Unit Flight Unit Hardlight Generator Hardlight Generator Tractor Beam Grenade Launcher Datajack Mining Laser [Rating: 13] Favorites ----------- Power Ion Engine Engine Ion Engine Propulsion Compact Wheel Leg Aluminum Leg Wheel Compact Wheel Flight Unit Flight Unit Utility Small Storage Unit Device Seismic Detector Storage Small Storage Unit Processor Visual Processing Unit Weapon Light Assault Rifle Energy Gun Medium Laser Ballistic Gun Light Assault Rifle Launcher Grenade Launcher Special Weapon Mining Laser Build | -11 -10 -9 -9 ------- Run | Jun Mat Mat Sto Slots Evolved 2 | . . 2 . Power . | . . . . Propulsion 2 | . . 2 . Utility . | . . . . Weapon . | . . . . Parts Attached 34 | 9 13 9 3 Power 3 | 1 1 1 . Engine 3 | 1 1 1 . Core . | . . . . Reactor . | . . . . Propulsion 12 | 4 1 7 . Treads . | . . . . Leg 3 | 2 1 . . Wheel 2 | 2 . . . Hover . | . . . . Flight 7 | . . 7 . Utility 4 | 2 1 1 . Device 2 | 1 . 1 . Storage 1 | 1 . . . Processor 1 | . 1 . . Hackware . | . . . . Protection . | . . . . Artifact . | . . . . Weapon 15 | 2 10 . 3 Energy Gun 2 | 1 1 . . Energy Cannon . | . . . . Ballistic Gun 6 | 1 4 . 1 Ballistic Cannon . | . . . . Launcher 6 | . 4 . 2 Special Weapon 1 | . 1 . . Impact Weapon . | . . . . Slashing Weapon . | . . . . Piercing Weapon . | . . . . Special Melee Weapon . | . . . . Unidentified Prototypes . | . . . . Parts Lost 12 | . 3 1 8 Power 2 | . 1 . 1 Propulsion 6 | . 1 1 4 Utility 1 | . 1 . . Weapon 3 | . . . 3 Highest Loss Streak 8 | . 1 1 8 To Critical Strikes . | . . . . Average Slot Usage (%) 90 | . 92 98 65 Engine 12 | . 13 11 7 Leg 5 | . 7 . . Wheel 15 | . 20 . . Flight 7 | . . 44 26 Device 4 | . 3 2 7 Storage 13 | . 14 11 11 Processor 4 | . 3 8 . Energy Gun 5 | . 6 . . Ballistic Gun 17 | . 18 20 7 Launcher 1 | . 1 . 4 Naked Turns . | . . . . Heaviest Build 19 | 14 15 18 19 Greatest Support 32 | 32 32 16 16 Greatest Overweight (x) 2 | . . 1 2 Average Overweight (x) . | . . . 1 Largest Inventory Capacity 8 | 8 8 8 8 Average Capacity 7 | 7 8 8 8 Most Carried 8 | 5 8 8 7 Average Carried 6 | 2 6 6 6 Final Capacity 8 | 8 8 8 8 Final Carried 8 | 5 8 7 7 Class Distribution -------------------- 84% | Mutant 8% | Sprinter 6% | Scavenger-Mutant Dominant Class ---------------- Mutant | -10/Materials Sprinter | -9/Materials Mutant | -9/Storage Resources | -11 -10 -9 -9 ----------- Run | Jun Mat Mat Sto Matter Collected 562 | 265 187 . 110 Remotely . | . . . . Salvage Created 512 | 63 400 14 35 Parts 46 | 6 32 1 7 Haulers Intercepted . | . . . . Recyclers Shooed 2 | . 1 . 1 Parts Field Recycled . | . . . . Retrieved Matter . | . . . . Parts Self-Destructed . | . . . . Prevented . | . . . . Kills | -11 -10 -9 -9 ------- Run | Jun Mat Mat Sto Combat Hostiles Destroyed 17 | . 14 . 3 Guns 6 | . 6 . . AOE 11 | . 8 . 3 Classes Destroyed 7 | 2 5 . . Worker 1 | . 1 . . Tunneler 1 | 1 . . . Recycler 1 | 1 . . . Operator 4 | . 2 1 1 Watcher 2 | . 2 . . Swarmer 6 | . 3 . 3 Grunt 11 | . 11 . . Best Kill Streak 5 | 2 5 1 3 Combat Bots Only 4 | . 4 . 3 Max Kills in Single Turn 3 | 1 3 1 3 Gunslinging . | . . . . Exploded 3 | . 2 . 3 Melee . | . . . . Uniques/NPCs Destroyed . | . . . . Combat | -11 -10 -9 -9 -------- Run | Jun Mat Mat Sto Damage Taken 1231 | . 337 195 699 Core 494 | . 84 55 355 Absorbed by Shields 52 | . . 52 . Core Remaining (%) 83 | 100 66 . . Volleys Fired 67 | 12 41 9 5 Largest 2 | 2 2 2 1 Hottest 100 | 70 100 40 30 Shots Fired 117 | 24 70 18 5 Gun 100 | 24 58 18 . Cannon . | . . . . Launcher 16 | . 11 . 5 Special 1 | . 1 . . Kinetic 69 | 12 39 18 . Thermal 32 | 12 20 . . Explosive 16 | . 11 . 5 Electromagnetic . | . . . . Robot Hit Streak 12 | 4 12 3 3 Robot Miss Streak 4 | 2 4 4 1 Penetration Max . | . . . . Secondary Targets 3 | . 3 . . Max Gunslinging Chain 1 | . 1 . . Shots Hit Robots 61 | 12 38 8 3 Core Hits 59 | 5 40 2 12 Critical Kills . | . . . . Critical Parts Destroyed . | . . . . Critical Strikes 3 | . 3 . . Burn 3 | . 3 . . Melee Attacks . | . . . . Impact . | . . . . Slashing . | . . . . Piercing . | . . . . Sneak Attacks . | . . . . Combat Hostiles . | . . . . Follow-up Attacks . | . . . . Damage Inflicted 1522 | 129 960 78 355 Guns 627 | 129 420 78 . Cannons . | . . . . Explosions 888 | . 540 . 348 Melee . | . . . . Ramming 7 | . . . 7 Kinetic 385 | 51 256 78 . Thermal 242 | 78 164 . . Explosive 888 | . 540 . 348 Electromagnetic . | . . . . Impact . | . . . . Slashing . | . . . . Piercing . | . . . . Highest Corruption 2 | . . 2 2 Average Corruption 2 | . . 2 2 Corruption Purged . | . . . . Corruption Blocked . | . . . . Effects 1 | . . 1 . Data Loss (major) 1 | . . 1 . Overload Shots . | . . . . Overflow Damage . | . . . . Projectiles . | . . . . Explosions . | . . . . Melee . | . . . . Knockbacks . | . . . . Impact . | . . . . Kinetic . | . . . . Secondary . | . . . . Self-Inflicted Damage 50 | . . . 50 Shots 2 | . . . 2 Rammed 3 | . . . 3 Targets Rammed 3 | . . . 3 Kicked . | . . . . Crushed . | . . . . Highest Temperature 263 | 82 263 10 4 Average Temperature 56 | 38 81 4 3 Received Heat Transfer 446 | . 153 65 228 Siege Activations . | . . . . Robots Corrupted . | . . . . Combat Hostiles . | . . . . Parts Fried . | . . . . Impact Corruptions . | . . . . Robots Melted . | . . . . Combat Hostiles . | . . . . Parts Melted 3 | . 3 . . Heat Transferred 925 | 222 703 . . Parts Sabotaged . | . . . . Parts Stolen . | . . . . Parts Stripped . | . . . . Power Chain Reactions . | . . . . Missiles Intercepted . | . . . . Alert | -11 -10 -9 -9 ------- Run | Jun Mat Mat Sto Peak Influence 305 | 10 305 178 200 Initial 74 | . 6 70 74 Average 111 | 2 123 120 128 Maximum Alert Level 1 | . 1 . 1 Low Security (%) 87 | 100 82 100 98 Level 1 12 | . 17 . 1 Level 2 . | . . . . Level 3 . | . . . . Level 4 . | . . . . Level 5 . | . . . . High Security . | . . . . Max Security . | . . . . Squads Dispatched 7 | . 3 1 3 Investigation 4 | . 1 . 3 Extermination . | . . . . Reinforcement 3 | . 2 1 . Assault . | . . . . Garrison . | . . . . Intercept . | . . . . Searches Triggered . | . . . . Construction Impeded . | . . . . Haulers Reinforced . | . . . . Active Scanning Responses . | . . . . Cargo Convoy Interrupts . | . . . . Stealth | -11 -10 -9 -9 --------- Run | Jun Mat Mat Sto Distress Signals 2 | . 2 . . Communications Jammed . | . . . . Distress Signals . | . . . . Times Spotted 52 | . 28 12 12 Peak Tracking Total 9 | . 7 9 8 Tactical Retreats 1 | . . 1 . Traps | -11 -10 -9 -9 ------- Run | Jun Mat Mat Sto Traps Triggered 2 | . . 1 1 Indirectly . | . . . . Trap Hack Attempts . | . . . . Triggered . | . . . . Disarmed . | . . . . Reprogrammed . | . . . . Reused . | . . . . Traps Extracted . | . . . . Installed . | . . . . Triggered . | . . . . Machines | -11 -10 -9 -9 ---------- Run | Jun Mat Mat Sto Machines Disabled 3 | . . . 3 Max in Single Turn 2 | . . . 2 Machines Repaired . | . . . . Machines Sabotaged . | . . . . Overloaded Fab Kills . | . . . . Hacking | -11 -10 -9 -9 --------- Run | Jun Mat Mat Sto Machines Accessed 11 | . 5 3 3 Terminals 11 | . 5 3 3 Fabricators . | . . . . Repair Stations . | . . . . Recycling Units . | . . . . Scanalyzers . | . . . . Garrison Access . | . . . . Total Hacks 41 | . 16 12 13 Successful 19 | . 10 5 4 Failed 22 | . 6 7 9 Catastrophic 3 | . 1 . 2 Database Lockouts . | . . . . Manual 24 | . 12 10 2 Terminals 41 | . 16 12 13 Fabricators . | . . . . Repair Stations . | . . . . Recycling Units . | . . . . Scanalyzers . | . . . . Garrison Access . | . . . . Terminal Hacks 13 | . 6 3 4 Prototype ID Bank 1 | . 1 . . Branch Access Points 1 | . 1 . . Terminal Index 2 | . 1 1 . Alert Level 4 | . 1 1 2 Unreport Threat 1 | . 1 . . Locate Traps 2 | . 1 . 1 Dispatch Records 1 | . . 1 . Zone Layout 1 | . . . 1 Fabricator Hacks . | . . . . Repair Station Hacks . | . . . . Recycling Unit Hacks . | . . . . Scanalyzer . | . . . . Garrison Access Hacks . | . . . . Unauthorized Hacks 6 | . 4 2 . Terminals 6 | . 4 2 . Botnet 5 | . 3 2 . Operators 1 | . 1 . . Fabricators . | . . . . Repair Stations . | . . . . Recycling Units . | . . . . Scanalyzers . | . . . . Garrison Access . | . . . . Data Cores Recovered 1 | . . . 1 Used . | . . . . Hacking Detections 11 | . 5 3 3 Full Trace Events 3 | . 1 . 2 Feedback Events . | . . . . Feedback Blocked . | . . . . Robot Schematics Acquired . | . . . . Robots Built . | . . . . Authchips . | . . . . Time . | . . . . Total Robot Build Rating . | . . . . Part Schematics Acquired . | . . . . Parts Built . | . . . . Authchips . | . . . . Time . | . . . . Total Part Build Rating . | . . . . Parts Repaired . | . . . . Time . | . . . . Parts Recycled . | . . . . Recycled Matter . | . . . . Retrieved Matter . | . . . . Retrieved Components . | . . . . Parts Scanalyzed . | . . . . Part Schematics Acquired . | . . . . Parts Damaged . | . . . . Bothacking | -11 -10 -9 -9 ------------ Run | Jun Mat Mat Sto Used RIF Installer . | . . . . Robots Hacked . | . . . . Non-combat . | . . . . Combat . | . . . . Robot Hacks Applied . | . . . . Relay Couplers Released . | . . . . Fabnet Peak Effective % . | . . . . Robots Rewired . | . . . . Allies Hacked . | . . . . Hacks Repelled . | . . . . Allies | -11 -10 -9 -9 -------- Run | Jun Mat Mat Sto Total Allies . | . . . . Largest Group . | . . . . Highest-Rated Group . | . . . . Highest-Rated Ally . | . . . . Total Orders . | . . . . Ally Attacks . | . . . . Total Damage . | . . . . Kills . | . . . . Allies Corrupted . | . . . . Allies Melted . | . . . . Intel | -11 -10 -9 -9 ------- Run | Jun Mat Mat Sto Robot Analysis Total . | . . . . Derelict Logs Recovered . | . . . . Drone Launches . | . . . . Drone Recoveries . | . . . . Exploration | -11 -10 -9 -9 ------------- Run | Jun Mat Mat Sto Turns Passed 1109 | 115 778 119 97 Spaces Moved 939 | 60 580 232 67 Core 24 | 6 . . 18 Treads . | . . . . Legs 39 | 39 . . . Wheels 595 | 15 580 . . Hover . | . . . . Flight 281 | . . 232 49 Fastest Speed 31 | 50 100 31 100 Average Speed 84 | 108 100 32 114 Slowest Speed 197 | 120 100 114 197 Overloaded Moves . | . . . . Propulsion Burnouts . | . . . . Robots Hopped 1 | . . 1 . Cave-ins Triggered . | . . . . Exploration Rate (%) 33 | 3 77 27 26 Regions Visited 3 Branch Regions 1 Pre-discovered Areas . | . . . . Known Exits Taken . | . . . . Unknown Exits Taken 3 | 1 1 1 . Scrap Searched . | . . . . Spaces Dug 8 | . 1 . 7 Terrain Destroyed 90 | . 60 . 30 Melee . | . . . . Projectile 1 | . 1 . . AOE 89 | . 59 . 30 Terrain Rammed . | . . . . Walls Destroyed . | . . . . Machines Disabled . | . . . . Actions | -11 -10 -9 -9 --------- Run | Jun Mat Mat Sto Total 1129 | 85 706 258 80 Wait 64 | . 63 1 . Move 934 | 59 579 229 67 Hop 1 | . . 1 . Pick Up 14 | 3 7 3 1 Fast Attach 12 | 9 2 1 . Attach 7 | . 1 4 2 Detach 5 | 2 . 2 1 Swap 15 | . 10 4 1 Drop 7 | . 3 4 . Fire 67 | 12 41 9 5 Melee . | . . . . Ram 3 | . . . 3 Kick . | . . . . Crush . | . . . . Escape Stasis . | . . . . Rewire . | . . . . Trap . | . . . . Miscellaneous . | . . . . Route ------- -11/Junkyard -10/Materials (discovered 3 exits: *Mat / *Min x2) -9/Materials (discovered 2 exits: [*Mat] / *Sto) -9/Storage History --------- Turn | Location | Event 6 | -11/Junkyard | Discovered new exit (range 16) 116 | -11/Junkyard | Entered Materials 315 | -10/Materials | Build established: Mutant 353 | -10/Materials | Identified exit to Mines 485 | -10/Materials | Discovered new exit (range 15) 894 | -10/Materials | Entered another Materials area 894 | -9/Materials | Evolved 2 slots: Propulsion x2 1004 | -9/Materials | Discovered new exit (range 16) 1010 | -9/Materials | Discovered new exit (range 16) 1013 | -9/Materials | Entered Storage 1083 | -9/Storage | Core integrity fell below 50% 1094 | -9/Storage | Core integrity fell below 20% 1110 | -9/Storage | Destroyed by G-34 Mercenary with Small Laser Last Messages --------------- 01086_ K-01 Serf collects debris. 01087_ Grenade Launcher destroyed. 01088_ Flight Unit destroyed. 01089_ K-01 Serf collects debris. 01090_ Flight Unit destroyed. 01093_ Connecting with Door Terminal... 01093_ ALERT: Suspicious activity at Terminal S010. Dispatching Investigation squad. 01093_ Critical hit (Burn: +37). 01100_ R-06 Scavenger collects Lgt. Ion Engine. 01100_ Slammed into M-13 Machinist. 01107_ Connecting with Terminal... >>Traps(Locate) Found 4 traps in 1 array: 4x Stasis Trap Map updated. >>Alert(Check) Current Alert Level: Low Security 01107_ ALERT: Suspicious activity at Terminal S014. Dispatching Investigation squad. Map ----- +----------------------------------------------------+ | ?????????????????????????????????????????????????? | | ?????????????????????????????????????????????????? | | ?????????????????????????????????????????????????? | | ?????????????????????????????????????????????????? | | ?????????????????????????????????????????????????? | | ?????????????????????????????????????????????????? | | ?????????????????????????????????????????????????? | | ?????????????????????????????????????????????????? | | ?????????????????????????????????????????????????? | | ?????????????????????????????????????????????????? | | ?????????????????????????????????????????????????? | | ???????????????????????""????????????????????????? | | ???????????????????????""????????????????????????? | | ??????????????????????? ????????????????????????? | | ??????????????????????##g##??????????????????????? | | ??????????????????????# ??????????????????????? | | ??????????????????????+ g k??????????????????????? | | ??????????????????????# g ??????????????????????? | | ??????????????????????#^^ #??????????????????????? | | ??????????????????????+^^ #??????????????????????? | | ??????????????????????# #??????????????????????? | | ??????????????????????# #??????????????????????? | | ??????????????????????# #??????????????????????? | | ??????????????????????# #??????????????????????? | | ??????????????????????? #??????????????????????? | | ????????????????????????#@##?????????????????????? | | ????????????????????????# "#?????????????????????? | | ????????????????????????# T#?????????????????????? | | ????????????????????????# "#?????????????????????? | | ????????????????????????# ##?????????????????????? | | ????????????????????????# #??????????????????????? | | ????????????????????????# #??????????????????????? | | ????????????????????????# #??????????????????????? | | ????????????????????????# #??????????????????????? | | ????????????????????????# #??????????????????????? | | ????????????????????????# ########???????????????? | | ?????????????###????????# # #???????????????? | | ?????????#? ?#????# # """ #???????????????? | | ?????????# #????#g# """ #???????????????? | | ????????## """ """ #????#g# """ #???????????????? | | ????????# """ """ #??### # #???????????????? | | ?????????# """ """ #??" # #???????????????? | | ?????????# #??#T = #####??????????????? | | ?????????# ### # [ #?????????? | | ######???# ## %% #?????????? | | #############+##### * #?????????? | | #?????????? | | """"" #?????????? | | # """""?#?????????? | | # ##+######+#### # ## """""???????????? | +----------------------------------------------------+ Best States ------------- Heat Dissipation 28 Energy Generation 14 Energy Capacity 250 Matter Stores 300 Matter Capacity 300 Sight Range 18 Terrain Scan Density 10 Evasion (%) 63 Item Schematics ----------------- None Robot Schematics ------------------ None Fabricated ------------ Nothing Alien Tech Used ----------------- None Achievements -------------- None Challenges ------------ None Game ------ Seed BurstRecyclingInitializer Manual? 0 Play Time 00:20:24 Cumulative 160.8 hours Start 2023.10.01 @ 08:16:31 End 2023.10.01 @ 08:37:15 Sessions 1 Manual Loads 0 Difficulty Rogue Special Mode None Game No. 247 Rogue 247 Adventurer 0 Explorer 0 Win Type - Total 0 Types 0/0/0/0/0/0/0/0/0 Lore% 51 Gallery% 57 Achievement% 40 Wizard Run 0 Options --------- ASCII 0 Keyboard 0 Movement Mouse Keybinds 0 Fullscreen 1 Font 12/Smallcaps Map View 83x54 Tactical HUD 1 Map Filters NONE Filters NONE Steam 1 RUN: 19a8be1b-c1af-483f-aa5d-65db69dcad03